bitfinex-derivatives/quotes_SOLF0:USTF0_20260312
["timestamp","ask_amount","ask_price","bid_price","bid_amount"]
[1773296096801,3.82607196,85.11,85.066,37.02]
[1773296097002,3.82607196,85.109,85.06,3.92210802]
[1773296098308,10.575,85.099,85.06,3.92210802]
[1773296098511,3.82607196,85.098,85.06,3.92210802]
[1773296100512,3.82607196,85.109,85.071,3.92210802]
[1773296103812,3.82607196,85.109,85.062,3.92210802]
[1773296104019,3.82607196,85.109,85.053,37.0]
[1773296104322,3.82607196,85.109,85.054,3.92210802]
[1773296105418,3.82607196,85.105,85.056,3.92210802]
[1773296106312,3.82607196,85.096,85.056,3.92210802]
[1773296106720,2.04512798,85.136,85.031,3.92210802]
[1773296106721,3.82607196,85.089,85.031,3.92210802]
[1773296106918,3.82607196,85.079,85.026,37.0]
[1773296107221,3.82607196,85.079,85.022,3.92210802]
[1773296107516,3.82607196,85.077,85.027,3.92210802]
[1773296108019,3.82607196,85.069,85.027,3.92210802]
[1773296120430,3.93582644,85.067,85.017,10.585]
[1773296120635,3.93582644,85.067,85.018,3.98663843]
[1773296121335,3.93582644,85.064,85.018,3.98663843]
[1773296124436,3.93582644,85.064,85.021,3.98663843]
[1773296125442,3.93582644,85.064,85.023,3.98663843]
[1773296128932,3.93582644,85.064,85.025,3.98663843]
[1773296130545,3.93582644,85.064,85.028,3.98663843]
[1773296138952,72.84401293,85.12,85.02,10.585]
[1773296138953,3.93582644,85.059,85.02,37.02]
[1773296139250,2.57936418,85.05,85.007,3.98663843]
[1773296139457,3.93582644,85.049,85.007,3.98663843]
[1773296140149,3.93582644,85.049,85.013,3.98663843]
[1773296140345,3.93582644,85.066,85.013,3.98663843]
[1773296142357,10.579,85.064,85.013,3.98663843]
[1773296142661,3.7117544,85.063,85.013,3.98663843]
[1773296145462,3.7117544,85.063,85.017,4.0663023]
[1773296150359,3.7117544,85.063,85.021,3.74858709]
[1773296151465,3.7117544,85.063,85.027,3.74858709]
[1773296160376,3.6942634,85.073,85.031,3.74858709]
[1773296161375,3.6942634,85.073,85.038,3.74858709]
[1773296164879,3.6942634,85.082,85.043,3.74858709]
[1773296165084,3.6942634,85.087,85.043,3.74858709]
[1773296165978,10.577,85.084,85.043,3.74858709]
[1773296166184,10.577,85.084,85.02,21.90505729]
[1773296166185,3.6942634,85.059,85.014,3.74858709]
[1773296166775,3.6942634,85.049,85.014,3.74858709]
[1773296168779,3.6942634,85.049,85.004,3.74858709]
[1773296170489,3.6942634,85.046,85.004,3.74858709]
[1773296170893,3.6942634,85.039,84.991,3.74858709]
[1773296172389,3.6942634,85.036,84.991,3.74858709]
[1773296174490,3.6942634,85.048,85.0,2.57936418]
[1773296174692,3.6942634,85.048,85.001,3.74858709]
[1773296175496,3.6942634,85.048,85.005,3.74858709]
[1773296177495,3.6942634,85.048,85.009,3.74858709]
[1773296178600,3.6942634,85.059,85.014,3.74858709]
[1773296179393,3.6942634,85.059,85.016,3.74858709]
[1773296197318,3.6942634,85.059,85.019,3.65264332]
[1773296197818,3.6942634,85.059,85.021,3.65264332]
[1773296200121,3.6942634,85.059,85.023,3.65264332]
[1773296208527,3.6942634,85.059,85.025,3.81762293]
[1773296211928,3.6942634,85.059,85.027,3.8566919]
[1773296213424,3.6942634,85.059,85.029,10.583]
[1773296214423,3.6942634,85.059,85.03,3.8566919]
[1773296219629,3.6942634,85.059,85.021,14.4416919]
[1773296219932,3.6942634,85.059,85.022,3.8566919]
[1773296233242,3.81830769,85.057,85.022,3.8566919]
[1773296235345,3.81830769,85.057,85.025,3.8566919]
[1773296238246,3.81830769,85.057,85.031,10.583]
[1773296238446,3.81830769,85.066,85.032,3.8566919]
[1773296238740,8.89648047,85.065,85.032,3.8566919]
[1773296238946,8.89648047,85.064,85.032,3.8566919]
[1773296239142,8.89648047,85.063,85.032,3.8566919]
[1773296239349,3.81830769,85.065,85.032,3.8566919]
[1773296239548,8.89492834,85.064,85.032,3.8566919]
[1773296239748,8.89492834,85.063,85.032,3.8566919]
[1773296239949,3.81830769,85.065,85.032,3.8566919]
[1773296241650,3.81830769,85.065,85.024,4.12891819]
[1773296243751,3.91951147,85.063,85.015,4.12891819]
[1773296244045,3.91951147,85.061,85.015,4.12891819]
[1773296244551,3.91951147,85.06,85.015,4.12891819]
[1773296245652,3.91951147,85.06,85.018,4.12891819]
[1773296247355,3.91951147,85.06,85.02,4.12891819]
[1773296248457,3.91951147,85.068,85.024,4.12891819]
[1773296248756,3.91951147,85.077,85.041,4.12891819]
[1773296248955,8.83167217,85.076,85.041,4.12891819]
[1773296249253,3.91951147,85.077,85.041,4.12891819]
[1773296249454,8.82870432,85.076,85.041,4.12891819]
[1773296249654,3.91951147,85.077,85.041,4.12891819]
[1773296251962,3.91951147,85.087,85.044,4.12891819]
[1773296252960,14.67901293,85.119,85.003,35.28]
[1773296252961,3.91951147,85.101,85.051,4.12891819]
[1773296253258,3.91951147,85.101,85.05,2.57947703]
[1773296253259,3.91951147,85.101,85.061,4.12891819]
[1773296254158,3.91951147,85.101,85.055,37.02]
[1773296254460,3.91951147,85.101,85.056,4.12891819]
[1773296255361,3.91951147,85.099,85.056,4.12891819]
[1773296258555,3.91951147,85.099,85.061,4.12891819]
[1773296269867,3.87790473,85.088,85.052,3.69076992]
[1773296273466,3.87790473,85.088,85.047,37.0]
[1773296273669,3.72247242,85.085,85.042,3.78198117]
[1773296274369,3.72247242,85.082,85.042,3.78198117]
[1773296277771,3.72247242,85.082,85.046,10.581]
[1773296277971,3.72247242,85.099,85.05,2.57947703]
[1773296278267,3.72247242,85.099,85.061,3.78198117]
[1773296278470,3.72247242,85.099,85.048,3.78198117]
[1773296278471,2.06076895,85.099,85.048,3.78198117]
[1773296278771,2.57947703,85.09,85.048,3.78198117]
[1773296279372,2.57947703,85.09,85.049,10.581]
[1773296279671,2.57947703,85.09,85.05,3.78198117]
[1773296279970,10.575,85.098,85.05,3.78198117]
[1773296280363,3.72247242,85.097,85.05,3.78198117]
[1773296281472,3.72247242,85.097,85.052,3.78198117]
[1773296281873,3.72247242,85.107,85.061,3.78198117]
[1773296283469,3.72247242,85.107,85.069,10.578]
[1773296290079,3.72247242,85.107,85.069,14.35998117]
[1773296290573,3.72247242,85.107,85.061,10.58]
[1773296290774,3.72247242,85.099,85.051,3.78198117]
[1773296290980,3.72247242,85.089,85.051,3.78198117]
[1773296293383,3.72247242,85.089,85.053,3.78198117]
[1773296294485,3.72247242,85.089,85.055,3.78198117]
[1773296295986,3.72247242,85.089,85.046,10.581]
[1773296296287,3.72247242,85.089,85.045,40.78198117]
[1773296296288,3.72247242,85.089,85.045,3.78198117]
[1773296297388,3.72247242,85.086,85.045,3.78198117]
[1773296298086,3.72247242,85.102,85.05,2.57947703]
[1773296298388,3.72247242,85.099,85.05,3.78198117]
[1773296299087,3.72247242,85.099,85.059,3.78198117]
[1773296302300,14.32024861,85.109,85.061,3.85702116]
[1773296303194,3.74624861,85.108,85.061,3.85702116]
[1773296303394,10.573,85.117,85.071,3.85702116]
[1773296303694,8.78204122,85.116,85.071,3.85702116]
[1773296303896,8.78204122,85.115,85.071,3.85702116]
[1773296304090,10.573,85.117,85.073,3.85702116]
[1773296306897,3.74624861,85.116,85.073,3.85702116]
[1773296310205,4.05962053,85.114,85.073,3.85702116]
[1773296311407,4.05962053,85.112,85.073,3.85702116]
[1773296312204,4.05962053,85.102,85.05,6.59080001]
[1773296312507,21.138,85.149,85.014,35.28]
[1773296312508,4.05962053,85.099,85.051,4.01345114]
[1773296312699,4.05962053,85.099,85.055,4.01345114]
[1773296314307,4.05962053,85.099,85.058,4.01345114]
[1773296315409,4.05962053,85.099,85.064,4.01345114]
[1773296317712,37.0,85.143,85.034,21.90505729]
[1773296317713,4.05962053,85.118,85.07,2.57734887]
[1773296318012,4.05962053,85.118,85.071,4.01345114]
[1773296318210,4.05962053,85.116,85.071,4.01345114]
[1773296318809,4.05962053,85.109,85.071,4.01345114]
[1773296324706,3.74970931,85.106,85.071,4.01345114]
[1773296325413,3.74970931,85.103,85.06,3.78032031]
[1773296325615,3.74970931,85.099,85.041,3.78032031]
[1773296326416,3.74970931,85.085,85.041,3.78032031]
[1773296326914,3.74970931,85.126,85.066,3.78032031]
[1773296327110,3.74970931,85.119,85.066,3.78032031]
[1773296327415,3.74970931,85.102,85.055,3.78032031]
[1773296328418,3.74970931,85.102,85.057,3.78032031]
[1773296334022,13.15234887,85.1,85.057,3.78032031]
[1773296334322,4.0507841,85.099,85.057,3.78032031]
[1773296340820,14.6257841,85.098,85.057,3.78032031]
[1773296341920,4.0507841,85.097,85.057,3.78032031]
[1773296343223,10.574,85.106,85.057,3.78032031]
[1773296343425,8.87594808,85.105,85.057,3.78032031]
[1773296343722,10.574,85.106,85.061,3.71582665]
[1773296344319,10.574,85.106,85.065,10.579]
[1773296344524,10.574,85.106,85.066,3.71582665]
[1773296344725,14.6247841,85.106,85.066,3.71582665]
[1773296345926,4.0507841,85.105,85.066,3.71582665]
[1773296354129,8.87958421,85.104,85.066,3.71582665]
[1773296354429,4.0507841,85.103,85.066,3.71582665]
[1773296365336,4.0507841,85.103,85.07,3.55565208]
[1773296368536,3.78340983,85.099,85.047,3.55565208]
[1773296368736,3.78340983,85.089,85.047,3.55565208]
[1773296369540,3.78340983,85.085,85.047,3.55565208]
[1773296374839,3.78340983,85.083,85.047,3.55565208]
[1773296375539,3.78340983,85.081,85.037,3.55565208]
[1773296375841,3.78340983,85.079,85.037,3.55565208]
[1773296377336,3.78340983,85.075,85.037,3.55565208]
[1773296379736,10.578,85.073,85.037,3.55565208]
[1773296379940,3.78340983,85.072,85.037,3.55565208]
[1773296385047,3.65470402,85.081,85.039,3.62777807]
[1773296385249,3.65470402,85.081,85.041,3.62777807]
[1773296385941,3.65470402,85.081,85.042,3.62777807]
[1773296386943,3.65470402,85.078,85.042,3.62777807]
[1773296388350,10.578,85.075,85.042,3.62777807]
[1773296388546,3.65470402,85.074,85.042,3.62777807]
[1773296389552,10.578,85.071,85.042,3.62777807]
[1773296391156,14.32009021,85.071,85.042,3.62777807]
[1773296393652,3.74209021,85.071,85.042,3.62777807]
[1773296395858,3.74209021,85.071,85.033,3.73195314]
[1773296398659,3.74209021,85.068,85.033,3.73195314]
[1773296400662,3.74209021,85.068,85.025,37.02]
[1773296400861,3.74209021,85.068,85.025,40.75195314]
[1773296401061,3.74209021,85.067,85.026,3.73195314]
[1773296401863,3.74209021,85.063,85.026,3.73195314]
[1773296403464,3.74209021,85.06,85.026,3.73195314]
[1773296403856,10.58,85.058,85.026,3.73195314]
[1773296404162,3.74209021,85.057,85.026,3.73195314]
[1773296405365,6.00696718,85.097,85.05,2.57711061]
[1773296405659,6.0068133,85.119,85.07,2.57711061]
[1773296405861,6.0068133,85.119,85.063,37.02]
[1773296406060,6.0068133,85.119,85.064,37.02]
[1773296406566,6.0068133,85.117,85.08,2.57711061]
[1773296406864,6.0068133,85.117,85.07,2.57711061]
[1773296407365,6.0068133,85.117,85.071,10.578]
[1773296409365,6.0068133,85.117,85.07,37.02]
[1773296409665,6.05090204,85.109,85.06,2.57711061]
[1773296412367,6.05090204,85.109,85.061,10.58]
[1773296413069,6.05090204,85.109,85.07,2.57711061]
[1773296418876,6.05551614,85.102,85.056,37.02]
[1773296419373,6.05551614,85.099,85.04,2.57711061]
[1773296420479,6.08819687,85.09,85.04,2.57711061]
[1773296421175,6.08819687,85.09,85.042,10.582]
[1773296423679,6.09183631,85.085,85.04,2.57789251]
[1773296425478,2.57789251,85.1,85.04,2.57789251]
[1773296425479,6.09183631,85.083,85.04,2.57789251]
[1773296426480,6.09183631,85.083,85.04,13.15989251]
[1773296427385,6.09230816,85.079,85.04,2.57789251]
[1773296429280,6.09230816,85.079,85.039,37.0]
[1773296429580,6.09230816,85.079,85.04,2.57789251]
[1773296430182,6.09230816,85.079,85.042,10.582]
[1773296436084,6.09230816,85.079,85.036,37.0]
[1773296436085,6.07482836,85.077,85.036,37.0]
[1773296436786,6.07482836,85.075,85.036,37.0]
[1773296438687,6.09325791,85.069,85.016,37.0]
[1773296439288,6.09325791,85.069,85.019,10.585]
[1773296439889,6.09325791,85.069,85.026,10.584]
[1773296447286,6.07533303,85.067,85.026,10.584]
[1773296450087,6.07533303,85.067,85.021,37.02]
[1773296451396,6.07533303,85.067,85.022,10.584]
[1773296451894,6.06776115,85.065,85.022,10.584]
[1773296453592,6.06776115,85.062,85.021,37.02]
[1773296453794,2.57789251,85.06,85.021,37.02]
[1773296453990,6.07132801,85.059,85.021,37.02]
[1773296454297,6.07132801,85.054,85.021,37.02]
[1773296457899,6.06638367,85.07,85.021,37.02]
[1773296458291,6.06638367,85.07,85.03,2.57789251]
[1773296458994,6.06638367,85.07,85.021,37.02]
[1773296459400,6.06638367,85.07,85.032,10.583]
[1773296459994,6.06638367,85.07,85.024,10.584]
[1773296461198,6.06638367,85.07,85.021,37.02]
[1773296461199,6.06740358,85.066,85.021,37.02]
[1773296462395,6.07167306,85.063,85.021,37.02]
[1773296464499,6.07130869,85.061,85.021,37.02]
[1773296465402,6.07130869,85.061,85.022,10.584]
[1773296469102,6.07130869,85.061,85.029,10.584]
[1773296469402,16.64750866,85.078,85.029,10.584]
[1773296469706,6.06950866,85.076,85.029,10.584]
[1773296469908,6.06914967,85.074,85.029,10.584]
[1773296470310,6.06914967,85.072,85.029,10.584]
[1773296470905,6.06914967,85.072,85.03,2.57789251]
[1773296471408,6.06914967,85.07,85.021,47.605]
[1773296471709,6.06914967,85.069,85.021,37.02]
[1773296473010,6.06914967,85.069,85.02,2.57789251]
[1773296473409,6.06914967,85.069,85.028,10.584]
[1773296479216,6.08179933,85.067,85.028,10.584]
[1773296480114,9.00873459,85.066,85.028,10.584]
[1773296480417,6.08538602,85.064,85.028,10.584]
[1773296481109,9.01396448,85.063,85.028,10.584]
[1773296481313,6.08539741,85.063,85.028,10.584]
[1773296482217,9.01494064,85.062,85.028,10.584]
[1773296482417,6.08539741,85.063,85.028,10.584]
[1773296482619,9.01503451,85.062,85.028,10.584]
[1773296482819,6.08539741,85.063,85.028,10.584]
[1773296483018,9.01503451,85.062,85.028,10.584]
[1773296483314,6.08539741,85.063,85.028,10.584]
[1773296483510,9.01619637,85.062,85.028,10.584]
[1773296483819,9.01619637,85.061,85.028,10.584]
[1773296484018,6.08539741,85.063,85.028,10.584]
[1773296484216,9.01619637,85.062,85.028,10.584]
[1773296484415,9.01619637,85.061,85.028,10.584]
[1773296484616,6.08539741,85.063,85.028,10.584]
[1773296484815,9.01638222,85.062,85.028,10.584]
[1773296485113,15.1038677,85.061,85.028,10.584]
[1773296485319,6.08748548,85.061,85.028,10.584]
[1773296488916,6.09800112,85.079,85.02,2.57926309]
[1773296489120,37.02,85.1,85.03,2.57926309]
[1773296489121,6.09800112,85.077,85.03,2.57926309]
[1773296489320,6.09800112,85.075,85.03,2.57926309]
[1773296489526,6.09800112,85.073,85.03,2.57926309]
[1773296489826,6.0926207,85.071,85.03,2.57926309]
[1773296490128,15.10995177,85.07,85.03,2.57926309]
[1773296490325,6.0926207,85.07,85.036,10.583]
[1773296491622,6.0926207,85.07,85.03,2.57926309]
[1773296493329,6.0926207,85.07,85.035,10.583]
[1773296494623,6.08816034,85.079,85.035,10.583]
[1773296494929,6.08816034,85.079,85.042,10.582]
[1773296500429,6.08609514,85.109,85.06,2.57926309]
[1773296500633,6.08609514,85.119,85.07,2.57926309]
[1773296500829,17.25827602,85.14,85.027,35.26]
[1773296500830,6.08609514,85.117,85.08,2.57926309]
[1773296501032,6.08609514,85.117,85.09,2.57926309]
[1773296501633,2.04496574,85.156,85.074,37.02]
[1773296501634,6.10047878,85.129,85.1,2.57926309]
[1773296501824,6.10047878,85.159,85.1,2.57926309]
[1773296502024,6.10047878,85.157,85.1,2.57926309]
[1773296502228,6.10047878,85.155,85.1,2.57926309]
[1773296502528,6.10047878,85.15,85.1,2.57926309]
[1773296502728,6.09382928,85.148,85.1,2.57926309]
[1773296503033,6.09382928,85.146,85.1,2.57926309]
[1773296503934,6.09382928,85.146,85.088,37.02]
[1773296504134,6.09382928,85.146,85.1,2.57926309]
[1773296505132,6.09382928,85.146,85.099,10.575]
[1773296507429,6.09382928,85.146,85.09,10.576]
[1773296507731,6.09382928,85.146,85.088,37.02]
[1773296508132,6.09382928,85.146,85.09,2.57926309]
[1773296509429,6.09382928,85.146,85.098,10.575]
[1773296513832,6.09382928,85.146,85.107,10.574]
[1773296516835,6.07832931,85.159,85.114,10.573]
[1773296518041,6.08050203,85.169,85.12,2.57926309]
[1773296519440,6.08050203,85.169,85.12,13.15126309]
[1773296519939,6.08050203,85.169,85.127,10.571]
[1773296521743,6.10142654,85.159,85.1,2.57926309]
[1773296523054,6.10142654,85.159,85.118,10.573]
[1773296529955,10.566,85.17,85.121,10.572]
[1773296530154,6.08360047,85.169,85.121,10.572]
[1773296530953,6.08360047,85.163,85.121,10.572]
[1773296531860,2.57926309,85.15,85.09,2.57926309]
[1773296532065,6.09010743,85.149,85.09,2.57926309]
[1773296533464,6.09010743,85.148,85.097,10.575]
[1773296535166,6.09010743,85.148,85.1,2.57926309]
[1773296536069,6.07977993,85.159,85.11,2.57926309]
[1773296537460,6.07977993,85.159,85.114,10.573]
[1773296540069,6.10231174,85.159,85.114,10.573]
[1773296544474,6.11038702,85.149,85.1,2.57926309]
[1773296544666,6.11038702,85.149,85.077,58.86356498]
[1773296544667,6.11038702,85.149,85.11,2.57926309]
[1773296544869,6.11038702,85.149,85.1,2.57926309]
[1773296546471,6.11038702,85.149,85.112,10.573]
[1773296547178,6.1127552,85.166,85.11,2.57926309]
[1773296547567,6.1127552,85.166,85.11,2.57341778]
[1773296548183,6.09943741,85.159,85.1,2.57341778]
[1773296549270,6.09943741,85.159,85.117,10.573]
[1773296552987,6.07684071,85.157,85.117,10.573]
[1773296554090,6.07871853,85.153,85.117,10.573]
[1773296554382,6.07871853,85.153,85.111,10.573]
[1773296555383,6.07871853,85.151,85.111,10.573]
[1773296556184,6.07871853,85.151,85.119,10.572]
[1773296556593,6.07871853,85.151,85.1,2.57341778]
[1773296558393,6.07871853,85.151,85.117,10.573]
[1773296558990,6.07871853,85.151,85.1,2.57341778]
[1773296559692,6.07871853,85.151,85.115,10.573]
[1773296559996,6.07871853,85.151,85.1,2.57341778]
[1773296560399,6.07871853,85.151,85.12,10.572]
[1773296564303,6.07871853,85.151,85.1,2.57341778]
[1773296566202,6.07871853,85.151,85.11,2.57341778]
[1773296566402,6.07871853,85.151,85.121,10.572]
[1773296567202,6.07871853,85.151,85.126,10.571]
[1773296568599,6.08734866,85.163,85.126,10.571]
[1773296573605,15.04000019,85.162,85.126,10.571]
[1773296573904,6.12494466,85.162,85.126,10.571]
[1773296580309,8.91624127,85.161,85.126,10.571]
[1773296580509,6.12494466,85.162,85.126,10.571]
[1773296580811,8.91624127,85.161,85.126,10.571]
[1773296581010,6.12494466,85.162,85.126,10.571]
[1773296585209,6.12494466,85.162,85.131,10.571]
[1773296587018,6.12494466,85.162,85.12,2.57341778]
[1773296587210,6.12494466,85.162,85.11,2.57341778]
[1773296587410,6.12494466,85.162,85.12,2.57341778]
[1773296588309,6.12494466,85.162,85.128,10.571]
[1773296594525,6.12494466,85.162,85.134,10.57]
[1773296595814,6.12304086,85.189,85.14,2.57341778]
[1773296596016,6.12304086,85.187,85.14,2.57341778]
[1773296596215,6.12304086,85.185,85.14,2.57341778]
[1773296596527,15.03202467,85.184,85.14,2.57341778]
[1773296596726,15.03202467,85.183,85.14,2.57341778]
[1773296596925,6.12304086,85.183,85.152,10.568]
[1773296597627,10.98280066,85.209,85.127,36.98]
[1773296597628,6.12304086,85.198,85.158,10.567]
[1773296597927,6.11593732,85.196,85.158,10.567]
[1773296598121,6.11593732,85.194,85.158,10.567]
[1773296598325,6.11593732,85.192,85.158,10.567]
[1773296598525,15.01915034,85.191,85.158,10.567]
[1773296598725,6.11593732,85.191,85.158,10.567]
[1773296600824,6.11593732,85.191,85.155,10.568]
[1773296602732,6.11593732,85.191,85.161,10.567]
[1773296604733,6.10562916,85.204,85.161,10.567]
[1773296604930,8.88018839,85.203,85.167,10.566]
[1773296605129,6.10562916,85.204,85.167,10.566]
[1773296605532,6.10562916,85.214,85.17,2.57341778]
[1773296605832,6.10326304,85.212,85.17,2.57341778]
[1773296606034,14.98113927,85.211,85.17,2.57341778]
[1773296606235,6.10326304,85.211,85.17,2.57341778]
[1773296606429,6.10326304,85.211,85.181,10.565]
[1773296607833,6.13121764,85.223,85.187,10.564]
[1773296608036,8.87154277,85.222,85.187,10.564]
[1773296608236,6.13121764,85.229,85.187,10.564]
[1773296608531,2.57341778,85.24,85.187,10.564]
[1773296608532,6.13121764,85.227,85.187,10.564]
[1773296609432,6.13121764,85.224,85.187,10.564]
[1773296614741,36.96,85.255,85.18,10.565]
[1773296614742,6.1395923,85.219,85.18,10.565]
[1773296616244,6.14509786,85.209,85.16,36.96]
[1773296617345,6.14509786,85.209,85.17,10.566]
[1773296617740,6.14509786,85.209,85.16,36.96]
[1773296618146,6.14509786,85.209,85.16,39.52969001]
[1773296619047,6.14509786,85.209,85.176,10.565]
[1773296619245,6.14509786,85.209,85.16,39.52969001]
[1773296619846,6.14509786,85.209,85.18,10.565]
[1773296623748,6.14509786,85.209,85.16,39.52969001]
[1773296625349,6.14509786,85.209,85.175,10.565]
[1773296628447,6.14083604,85.208,85.141,36.96]
[1773296628647,6.14083604,85.199,85.14,2.56969001]
[1773296628846,6.14083604,85.199,85.165,10.567]
[1773296635356,6.14083604,85.199,85.171,10.566]
[1773296635957,6.14083604,85.199,85.15,2.56969001]
[1773296637364,6.14083604,85.199,85.164,10.567]
[1773296640165,6.08190997,85.209,85.16,2.56969001]
[1773296640359,6.08190997,85.218,85.17,2.56969001]
[1773296640858,6.08190997,85.218,85.141,21.88356498]
[1773296640859,6.08190997,85.239,85.18,2.56969001]
[1773296641057,6.08190997,85.237,85.19,2.56969001]
[1773296641262,6.08190997,85.235,85.19,2.56969001]
[1773296641461,8.87596768,85.234,85.19,2.56969001]
[1773296641761,6.07713184,85.245,85.206,10.562]
[1773296641965,8.87602933,85.244,85.2,2.56969001]
[1773296642266,6.07713184,85.243,85.18,2.56969001]
[1773296642562,6.07713184,85.243,85.19,2.56969001]
[1773296642762,6.07713184,85.239,85.18,2.56969001]
[1773296644061,6.08710301,85.23,85.18,2.56969001]
[1773296645365,6.08710301,85.23,85.186,10.564]
[1773296646565,6.08276808,85.229,85.186,10.564]
[1773296649365,6.08276808,85.229,85.192,10.563]
[1773296657572,6.07649148,85.233,85.201,10.562]
[1773296658366,6.07649148,85.233,85.169,36.96]
[1773296658367,6.07548102,85.246,85.207,10.561]
[1773296662675,6.03696717,85.24,85.19,2.56969001]
[1773296662979,6.03696717,85.24,85.182,36.94]
[1773296662980,6.03696717,85.239,85.182,36.94]
[1773296663976,6.0376399,85.234,85.182,36.94]
[1773296665076,0.07395324,85.217,85.182,36.94]
[1773296665584,0.07395324,85.217,85.196,10.563]
[1773296665979,0.07395324,85.217,85.189,10.564]
[1773296666184,6.11166381,85.217,85.161,36.94]
[1773296666587,6.03771057,85.217,85.161,36.94]
[1773296666884,6.03771057,85.217,85.17,2.56969001]
[1773296667482,6.03771057,85.217,85.183,10.564]
[1773296667883,2.56969001,85.2,85.165,10.567]
[1773296668087,6.04126181,85.199,85.144,36.94]
[1773296668392,6.04126181,85.219,85.16,2.56969001]
[1773296668692,6.04126181,85.219,85.17,2.56969001]
[1773296669588,6.04126181,85.219,85.17,2.57014631]
[1773296671390,6.04126181,85.219,85.177,10.565]
[1773296677881,6.05403697,85.217,85.177,10.565]
[1773296681290,6.05524424,85.228,85.17,2.57014631]
[1773296681493,6.05524424,85.246,85.19,2.57014631]
[1773296681691,6.05524424,85.244,85.18,2.57014631]
[1773296681897,6.05177272,85.229,85.17,2.57014631]
[1773296682195,6.05177272,85.229,85.171,36.96]
[1773296683595,6.05185465,85.222,85.181,10.565]
[1773296693204,6.12922615,85.209,85.15,2.57014631]
[1773296693400,6.12922615,85.207,85.151,36.96]
[1773296693594,6.12922615,85.206,85.162,10.567]
[1773296693798,6.12922615,85.206,85.151,36.96]
[1773296694005,10.98280066,85.229,85.14,2.57014631]
[1773296694006,6.13134617,85.199,85.14,2.57014631]
[1773296694303,6.13134617,85.199,85.124,21.144]
[1773296694304,6.13134617,85.199,85.15,2.57014631]
[1773296694697,6.13134617,85.179,85.13,21.88356498]
[1773296694898,6.13134617,85.159,85.13,21.88356498]
[1773296695308,6.13134617,85.159,85.107,36.96]
[1773296695606,6.13134617,85.159,85.1,2.57014631]
[1773296695805,6.16396065,85.155,85.1,2.57014631]
[1773296696203,6.16396065,85.129,85.08,2.57014631]
[1773296696407,6.16396065,85.129,85.08,39.53014631]
[1773296697211,6.16396065,85.129,85.08,36.96]
[1773296697413,6.16396065,85.129,85.07,2.57014631]
[1773296698611,6.09236759,85.149,85.09,2.57014631]
[1773296699404,6.09236759,85.146,85.09,13.14614631]
[1773296700312,2.57014631,85.16,85.1,2.57014631]
[1773296700516,6.06407688,85.159,85.11,2.57014631]
[1773296701015,6.06407688,85.139,85.037,21.166]
[1773296701209,6.06407688,85.139,85.029,35.21]
[1773296701210,6.06407688,85.099,84.985,164.726]
[1773296701403,2.57014631,85.08,84.958,164.778]
[1773296701614,6.06407688,85.079,85.03,2.57014631]
[1773296702309,6.06407688,85.079,85.039,10.582]
[1773296702511,6.08042862,85.109,85.05,2.57014631]
[1773296703122,6.08042862,85.109,85.06,2.57014631]
[1773296703710,6.08042862,85.109,85.05,2.57014631]
[1773296704305,6.08042862,85.109,85.063,10.579]
[1773296709717,6.08042862,85.109,85.01,21.172]
[1773296709718,2.57014631,85.08,85.02,2.57014631]
[1773296709914,6.07657444,85.079,85.02,2.57014631]
[1773296710613,6.07657444,85.079,85.011,36.98]
[1773296710614,6.07657444,85.079,85.041,10.582]
[1773296711419,6.07657444,85.079,85.02,2.57014631]
[1773296712811,6.07657444,85.079,85.03,2.57014631]
[1773296713419,6.07657444,85.079,85.032,10.583]
[1773296715017,6.07657444,85.079,84.985,21.179]
[1773296715018,2.57014631,85.07,85.01,2.57014631]
[1773296715323,6.0316581,85.069,84.985,58.179]
[1773296715517,6.0316581,85.069,85.032,10.583]
[1773296718517,6.0316581,85.069,85.04,10.582]
[1773296718718,6.02194699,85.082,85.04,10.582]
[1773296719920,6.02194699,85.082,85.048,10.581]
[1773296722725,6.01100937,85.1,85.05,2.57014631]
[1773296723027,16.58400937,85.112,85.06,2.57014631]
[1773296723221,6.01100937,85.111,85.06,2.57014631]
[1773296724222,6.00820634,85.147,85.07,2.57014631]
[1773296724520,6.00820634,85.155,85.071,37.0]
[1773296724720,6.00820634,85.155,85.11,2.57014631]
[1773296724921,6.00820634,85.155,85.114,10.573]
[1773296725119,6.00820634,85.155,85.11,2.57014631]
[1773296726329,6.00820634,85.155,85.111,10.573]
[1773296728630,6.00820634,85.155,85.12,2.57014631]